fUST/lending_fUST_20260130
["ID","MTS","AMOUNT","RATE_DAILY","PERIOD"]
[404065696,1769781032346,-1500.0,0.00014368,2]
[404065698,1769781032356,-1500.0,0.00014368,2]
[404065700,1769781032366,-1612.0,0.00014599,2]
[404065702,1769781032375,-2092.436529,0.00014916,2]
[404065704,1769781032385,-2000.0,0.00014916,2]
[404065706,1769781032395,-1330.5351028,0.00014916,2]
[404065708,1769781032405,-420.0,0.00015143,2]
[404065709,1769781032416,-231.0,0.00015451,2]
[404065710,1769781032425,-179.0,0.00015949,2]
[404065711,1769781032435,-287.0,0.00016593,2]
[404065712,1769781032444,-258.0,0.00017451,2]
[404065713,1769781032454,-500.0,0.00017468,2]
[404065714,1769781032463,-500.0,0.00017468,2]
[404065715,1769781032473,-500.0,0.00017468,2]
[404065716,1769781032483,-185.40446176,0.00017468,2]
[404065717,1769781032492,-500.0,0.00017468,2]
[404065718,1769781032502,-300.14855773,0.00017468,2]
[404065719,1769781032511,-500.0,0.00017468,2]
[404065720,1769781032521,-500.0,0.00017468,2]
[404065721,1769781032531,-500.0,0.00017468,2]
[404065722,1769781032541,-500.0,0.00017468,2]
[404065723,1769781032687,-500.0,0.00017468,2]
[404065724,1769781032705,-500.0,0.00017468,2]
[404065725,1769781032715,-500.0,0.00017468,2]
[404065727,1769781032724,-500.0,0.00017468,2]
[404065729,1769781032734,-500.0,0.00017468,2]
[404065731,1769781032743,-580.69358498,0.00017468,2]
[404065733,1769781032752,-500.0,0.00017468,2]
[404065735,1769781032762,-500.0,0.00017468,2]
[404065737,1769781032772,-500.0,0.00017468,2]
[404065739,1769781032781,-500.0,0.00017468,2]
[404065741,1769781032791,-500.0,0.00017468,2]
[404065743,1769781032800,-500.0,0.00017468,2]
[404065745,1769781032809,-500.0,0.00017468,2]
[404065747,1769781032819,-500.0,0.00017468,2]
[404065749,1769781032830,-500.0,0.00017468,2]
[404065751,1769781032839,-500.0,0.00017468,2]
[404065753,1769781032848,-500.0,0.00017468,2]
[404065755,1769781032858,-500.0,0.00017468,2]
[404065757,1769781032868,-500.0,0.00017468,2]
[404065759,1769781032877,-500.0,0.00017468,2]
[404065761,1769781032886,-214.93072799,0.00017468,2]
[404065763,1769781032895,-500.0,0.00017468,2]
[404065765,1769781032905,-500.0,0.00017468,2]
[404065767,1769781032914,-500.0,0.00017468,2]
[404065769,1769781032923,-500.0,0.00017468,2]
[404065771,1769781032932,-500.0,0.00017468,2]
[404065773,1769781032942,-500.0,0.00017468,2]
[404065775,1769781032951,-500.0,0.00017468,2]
[404065777,1769781032960,-500.0,0.00017468,2]
[404065779,1769781032969,-500.0,0.00017468,2]
[404065781,1769781032978,-500.0,0.00017468,2]
[404065783,1769781032987,-500.0,0.00017468,2]
[404065785,1769781032996,-500.0,0.00017468,2]
[404065787,1769781033005,-500.0,0.00017468,2]
[404065789,1769781033015,-500.0,0.00017468,2]
[404065791,1769781033025,-500.0,0.00017468,2]
[404065793,1769781033037,-500.0,0.00017468,2]
[404065795,1769781033047,-500.0,0.00017468,2]
[404065797,1769781033057,-500.0,0.00017468,2]
[404065799,1769781033068,-500.0,0.00017468,2]
[404065801,1769781033079,-500.0,0.00017468,2]
[404065803,1769781033089,-500.0,0.00017468,2]
[404065805,1769781033098,-500.0,0.00017468,2]
[404065807,1769781033109,-500.0,0.00017468,2]
[404065809,1769781033118,-500.0,0.00017468,2]
[404065811,1769781033127,-500.0,0.00017468,2]
[404065813,1769781033137,-500.0,0.00017468,2]
[404065815,1769781033147,-500.0,0.00017468,2]
[404065817,1769781033157,-500.0,0.00017468,2]
[404065819,1769781033166,-500.0,0.00017468,2]
[404065821,1769781033176,-500.0,0.00017468,2]
[404065823,1769781033185,-500.0,0.00017468,2]
[404065825,1769781033195,-500.0,0.00017468,2]
[404065827,1769781033205,-500.0,0.00017468,2]
[404065829,1769781033216,-500.0,0.00017468,2]
[404065831,1769781033228,-500.0,0.00017468,2]
[404065833,1769781033237,-500.0,0.00017468,2]
[404065835,1769781033247,-500.0,0.00017468,2]
[404065837,1769781033256,-500.0,0.00017468,2]
[404065839,1769781033266,-500.0,0.00017468,2]
[404065841,1769781033274,-500.0,0.00017468,2]
[404065843,1769781033283,-500.0,0.00017468,2]
[404065845,1769781033293,-361.072,0.00017469,2]
[404065847,1769781033303,-202.8595031,0.00017469,2]
[404065849,1769781033312,-1016.21861595,0.00017469,2]
[404065851,1769781033323,-68368.25742312,0.0001747,2]
[404065853,1769781033332,-499.19746389,0.00017598,2]
[404065855,1769781033341,-378.8694395,0.00018082,2]
[404065857,1769781033350,-823.6593573,0.00018082,2]
[404065859,1769781033360,-378.8694395,0.00018082,2]
[404065861,1769781033369,-378.8694395,0.00018082,2]
[404065863,1769781033378,-378.8694395,0.00018411,2]
[404065865,1769781033388,-377.9472677,0.00018411,2]
[404065868,1769781033398,-579.0109062,0.00018541,2]
[404065870,1769781033407,-378.8694395,0.00018541,2]
[404065872,1769781033416,-378.8694395,0.00018541,2]
[404065873,1769781033426,-378.8694395,0.00018541,2]
[404065875,1769781033435,-154.0346673,0.00018904,2]
[404065876,1769781033445,-232.16379145,0.00018945,2]
[404065878,1769781033454,-179.0,0.00018949,2]
[404065880,1769781033464,-378.8694395,0.00019041,2]
[404065882,1769781033474,-378.8694395,0.00019041,2]
[404065884,1769781033483,-378.0273862,0.00019041,2]
[404065886,1769781033493,-1041.66666667,0.00019057,2]
[404065888,1769781033502,-604.2779224,0.00019096,2]
[404065890,1769781033512,-189.9503656,0.00019096,2]
[404065892,1769781033522,-604.2779224,0.00019096,2]
[404065894,1769781033531,-604.2779224,0.00019096,2]
[404065896,1769781033540,-603.0253216,0.00019096,2]
[404065898,1769781033550,-431.52654432,0.0001921,2]
[404065900,1769781033559,-500.0,0.0001921,2]
[404065901,1769781033568,-500.0,0.0001921,2]
[404065904,1769781033579,-169.14367013,0.0001921,2]
[404065906,1769781033589,-295.71775014,0.00019446,2]
[404065907,1769781033599,-285.0,0.00019451,2]
[404065909,1769781033608,-473.55989075,0.00019763,2]
[404065911,1769781033617,-710.0,0.0001987,2]
[404065913,1769781033627,-154.379,0.00019918,2]
[404065915,1769781033636,-674.70225541,0.0001999,2]
[404065917,1769781033646,-150.0,0.0002,10]
[404065919,1769781033655,-164.67,0.000201,2]
[404065921,1769781033665,-600.0,0.00020213,2]
[404065923,1769781033676,-710.0,0.00020292,2]
[404065925,1769781033685,-188.22,0.0002069,3]
[404065927,1769781033694,-564.68,0.0002069,3]
[404065929,1769781033704,-169.82,0.000207,2]
[404065931,1769781033713,-153.26,0.000207,2]
[404065933,1769781033722,-710.0,0.00020711,2]
[404065935,1769781033731,-52.48275206,0.00020852,3]
[404066081,1769781039227,-344.19,9.9e-05,2]
[404066083,1769781039237,-344.19,9.9e-05,2]
[404066086,1769781039247,-344.19,9.9e-05,2]
[404066088,1769781039257,-344.19,0.0001,2]
[404066090,1769781039271,-323.95724794,0.00020852,3]
[404066092,1769781039281,-315.63212169,0.00020862,3]
[404066094,1769781039293,-437.23787831,0.00020862,3]
[404066096,1769781039303,-405.0,0.00020872,2]
[404066099,1769781039313,-158.05,0.00021,2]
[404066101,1769781039324,-150.0,0.00021,2]
[404066103,1769781039334,-156.0,0.00021288,4]
[404066105,1769781039343,-312.0,0.00021451,2]
[404066107,1769781039354,-400.0,0.00021643,2]
[404066109,1769781039363,-710.0,0.0002177,2]
[404066111,1769781039372,-179.0,0.00021949,2]
[404066113,1769781039382,-376.44,0.0002206,3]
[404066115,1769781039391,-321.73,0.000221,7]
[404066117,1769781039401,-429.8746038,0.00022222,3]
[404066119,1769781039414,-323.0053962,0.00022222,3]
[404066121,1769781039424,-1505.74,0.00022232,3]
[404066123,1769781039434,-720.0,0.00022235,10]
[404066125,1769781039444,-400.0,0.00022434,2]
[404066127,1769781039453,-171.12363175,0.00022434,2]
[404066130,1769781039466,-614.87636825,0.00022434,2]
[404066132,1769781039475,-158.05,0.000228,2]
[404066134,1769781039484,-253.32,0.000228,2]
[404066136,1769781039494,-19742.76274772,0.00023288,7]
[404066138,1769781039506,-16338.7165735,0.00023288,7]
[404066140,1769781039515,-2255.3928682,0.00023288,7]
[404066142,1769781039527,-500.0,0.00023288,7]
[404066239,1769781040461,-9002.34440588,0.00023288,7]
[404066246,1769781040522,-26242.26272592,0.00023288,7]
[404066248,1769781040532,-164.67,0.000234,2]
[404066250,1769781040541,-339.0,0.00023451,2]
[404066252,1769781040551,-455.73995817,0.000239,2]
[404066254,1769781040560,-2967.57,0.0002399,10]
[404066256,1769781040570,-18771.36168858,0.00024,30]
[404066259,1769781040582,-12200.0,0.00024,30]
[404066768,1769781045595,-13418.17437971,0.00024,30]
[404066770,1769781045605,-11280.3100268,0.00024,30]
[404066772,1769781045617,-550.49864065,0.00024,30]
[404066856,1769781046621,-153.26,0.000193,2]
[404066857,1769781046631,-1628.77125656,0.00024,30]
[404066858,1769781046680,-16176.67663601,0.00024,30]
[404066859,1769781046690,-500.0,0.00024,2]
[404066860,1769781046700,-250.85722573,0.00024,60]
[404066861,1769781046710,-150.26,0.00024,2]
[404066862,1769781046720,-1738.94098479,0.00024,2]
[404066863,1769781046729,-393.86553737,0.00024,7]
[404066864,1769781046739,-1041.66666667,0.00024,7]
[404066865,1769781046749,-212.04,0.00024,2]
[404066867,1769781046758,-1035.38,0.00024,14]
[404066868,1769781046768,-179.89206476,0.00024104,2]
[404066870,1769781046777,-150.65,0.000242,2]
[404066872,1769781046787,-864.0,0.00024458,10]
[404066874,1769781046797,-400.0,0.00024544,3]
[404066877,1769781046807,-158.05,0.000246,2]
[404066879,1769781046816,-150.2605547,0.00024658,2]
[404066881,1769781046826,-8.95814973,0.000247,2]
[404066903,1769781061803,168.797283,0.00024468,120]
[404066911,1769781328010,499.0,0.00023987,120]
[404066912,1769781329462,499.0,0.00025186,120]
[404066913,1769781331133,499.0,0.00026446,120]
[404066914,1769781332260,3000.0,0.00030137,120]
[404066915,1769781332811,499.0,0.00027768,120]
[404066916,1769781334342,499.0,0.00029156,120]
[404066917,1769781341078,229.0,0.00023988,120]
[404066918,1769781342666,229.0,0.00025188,120]
[404066919,1769781343974,229.0,0.00026447,120]
[404066920,1769781345350,229.0,0.00027769,120]
[404066921,1769781346633,229.0,0.00029158,120]
[404066925,1769781603407,254.7,9e-05,2]
[404066926,1769781603830,254.7,9e-05,2]
[404066927,1769781604338,254.7,9e-05,2]
[404066928,1769781604664,254.7,9e-05,2]
[404066929,1769781607545,-254.7,9.1e-05,2]
[404066930,1769781607575,-254.7,9.1e-05,2]
[404066931,1769781607605,-254.7,9.1e-05,2]
[404066932,1769781607634,-254.7,9.1e-05,2]
[404066933,1769781607664,-254.7,9.1e-05,2]
[404066934,1769781607694,-254.7,9.1e-05,2]
[404066935,1769781608142,-254.7,9.2e-05,2]
[404066936,1769781608285,254.7,9.2e-05,2]
[404066937,1769781608621,226.77844983,9.2e-05,2]
[404066938,1769781622648,-27.92155017,9.2e-05,2]
[404066939,1769781622675,-254.7,9.2e-05,2]
[404066940,1769781622694,-27.92155017,9.2e-05,2]
[404066941,1769781622706,-226.77844983,9.2e-05,2]
[404066942,1769781622715,-27.92155017,9.3e-05,2]
[404066943,1769781622726,-128.759989,9.3e-05,2]
[404066944,1769781623416,250.0,0.00024163,120]
[404066945,1769781624025,-98.01846083,9.3e-05,2]
[404066946,1769781624049,-254.7,9.3e-05,2]
[404066947,1769781624072,-122.45467546,9.3e-05,2]
[404066948,1769781625637,-132.24532454,9.3e-05,2]
[404066949,1769781625662,-254.7,9.3e-05,2]
[404066950,1769781625683,-113.05467546,9.3e-05,2]
[404066951,1769781626681,250.0,0.00025371,120]
[404066952,1769781628298,250.0,0.00026639,120]
[404066953,1769781629979,250.0,0.00027971,120]
[404066954,1769781631815,250.0,0.0002937,120]
[404066955,1769781634849,-141.64532454,9.3e-05,2]
[404066956,1769781634873,-254.7,9.3e-05,2]
[404066957,1769781634897,-254.7,9.4e-05,2]
[404066958,1769781634919,-254.7,9.4e-05,2]
[404066959,1769781634941,-184.25467546,9.4e-05,2]
[404066960,1769781640775,164.0,0.00024241,120]
[404066961,1769781642639,164.0,0.00025453,120]
[404066962,1769781644298,164.0,0.00026726,120]
[404066963,1769781645992,164.0,0.00028062,120]
[404066964,1769781647583,164.0,0.00029465,120]
[404066978,1769781861120,-694.00308934,9.213e-05,2]
[404066993,1769781904608,6017.0,0.00030137,120]
[404066998,1769781911815,178.0,0.0002452,120]
[404067004,1769781913616,178.0,0.00025746,120]
[404067005,1769781914945,178.0,0.00027033,120]
[404067006,1769781916290,178.0,0.00028385,120]
[404067007,1769781917668,178.0,0.00029804,120]
[404067008,1769781936248,166.0,0.00024559,120]
[404067009,1769781938001,166.0,0.00025787,120]
[404067014,1769782039115,-150.0,9.377e-05,2]
[404067015,1769782039136,-70.44532454,9.4e-05,2]
[404067016,1769782039158,-254.7,9.7e-05,2]
[404067017,1769782039182,-254.7,9.7e-05,2]
[404067018,1769782039205,-254.7,9.7e-05,2]
[404067019,1769782039230,-254.7,9.7e-05,2]
[404067020,1769782039250,-254.7,9.7e-05,2]
[404067021,1769782039270,-179.22492913,9.8e-05,2]
[404067035,1769782202823,152.48,9e-05,2]
[404067036,1769782203276,152.48,9e-05,2]
[404067037,1769782203610,152.48,9e-05,2]
[404067038,1769782203933,152.48,9e-05,2]
[404067039,1769782208353,181.0,0.00025224,120]
[404067040,1769782208688,-152.48,9.1e-05,2]
[404067041,1769782208713,-152.48,9.1e-05,2]
[404067042,1769782208735,-152.48,9.1e-05,2]
[404067043,1769782208757,-152.48,9.1e-05,2]
[404067044,1769782208779,-152.48,9.2e-05,2]
[404067045,1769782208802,-152.48,9.2e-05,2]
[404067046,1769782208823,-90.46646674,9.2e-05,2]
[404067047,1769782209657,181.0,0.00026485,120]
[404067048,1769782210927,-62.01353326,9.2e-05,2]
[404067049,1769782210956,-152.48,9.2e-05,2]
[404067050,1769782210987,-152.48,9.2e-05,2]
[404067113,1769782238523,-152.48,9.3e-05,2]
[404067115,1769782238532,-152.48,9.4e-05,2]
[404067116,1769782238542,-152.48,9.4e-05,2]
[404067118,1769782238553,-152.48,9.5e-05,2]
[404067120,1769782238563,-152.48,9.5e-05,2]
[404067122,1769782238580,-152.48,9.5e-05,2]
[404067124,1769782238591,-152.48,9.5e-05,2]
[404067126,1769782238601,-152.48,9.6e-05,2]
[404067128,1769782238610,-152.48,9.6e-05,2]
[404067130,1769782238619,-152.48,9.6e-05,2]
[404067132,1769782238630,-75.47507087,9.8e-05,2]
[404067133,1769782238639,-254.7,9.8e-05,2]
[404067135,1769782238649,-177.0,0.00011376,2]
[404067137,1769782238659,-204.0,0.00013377,2]
[404067139,1769782238668,-500.0,0.00013699,2]
[404067141,1769782238677,-1000.0,0.00014247,2]
[404067143,1769782238687,-1500.0,0.00014795,2]
[404067145,1769782238697,-231.0,0.00015377,2]
[404067146,1769782238706,-418.0,0.00016788,2]
[404067148,1769782238715,-179.0,0.00016788,2]
[404067150,1769782238725,-258.0,0.00017377,2]
[404067152,1769782238734,-199.724,0.00017379,2]
[404067154,1769782238744,-158.0,0.00018,2]
[404067156,1769782238753,-158.0,0.00018,2]
[404067158,1769782238763,-158.0,0.000193,2]
[404067160,1769782238772,-285.0,0.00019376,2]
[404067162,1769782238782,-161.53462202,0.0001947,2]
[404067164,1769782238791,-179.0,0.00019788,2]
[404067165,1769782238801,-1122.40207108,0.0002,14]
[404067167,1769782238810,-150.0,0.00020379,2]
[404067169,1769782238819,-200.18229647,0.000207,2]
[404067171,1769782238829,-360.32813364,0.000207,2]
[404067173,1769782238839,-197.77168893,0.00020701,2]
[404067175,1769782238848,-161.87139624,0.00020701,2]
[404067177,1769782238857,-209.71014104,0.00020701,2]
[404067179,1769782238866,-377.47825387,0.00020701,2]
[404067180,1769782238876,-291.36851324,0.00021113,2]
[404067182,1769782238886,-400.0,0.00021178,2]
[404067184,1769782238895,-312.0,0.00021377,2]
[404067185,1769782238905,-355.63305103,0.00021956,2]
[404067187,1769782238914,-640.5833487,0.00021995,2]
[404067189,1769782238923,-671.07245133,0.00021995,2]
[404067191,1769782238932,-710.0,0.00022766,3]
[404067193,1769782238942,-179.0,0.00022788,2]
[404067194,1769782238952,-1041.66666667,0.00023097,2]
[404067196,1769782238961,-288.857,0.00023097,2]
[404067198,1769782238971,-225.1942388,0.00023251,2]
[404067200,1769782238980,-8713.29395948,0.00023288,7]
[404067202,1769782238989,-339.0,0.00023377,2]
[404067204,1769782238999,-150.0,0.00023379,2]
[404067206,1769782239009,-162.0,0.000234,4]
[404067207,1769782239018,-197.6203384,0.00023627,2]
[404067209,1769782239028,-158.0,0.00024,5]
[404067211,1769782239037,-158.0,0.00024,5]
[404067213,1769782239047,-237.0,0.00024,7]
[404067215,1769782239056,-517.98846798,0.0002409,2]
[404067217,1769782239065,-179.89206476,0.00024104,2]
[404067218,1769782239074,-197.14516676,0.00024206,2]
[404067219,1769782239084,-237.0,0.00024424,7]
[404067221,1769782239093,-168.797283,0.00024468,2]
[404067223,1769782239103,-158.0,0.000245,7]
[404067224,1769782239112,-158.0,0.000245,7]
[404067226,1769782239121,-141.69185027,0.000247,2]
[404067228,1769782239133,-400.0,0.0002482,3]
[404067230,1769782239143,-150.26,0.000249,2]
[404067232,1769782239152,-346.10023132,0.00024971,7]
[404067234,1769782239161,-500.0,0.00025,2]
[404067235,1769782239171,-808.0,0.00025,30]
[404067237,1769782239180,-150.65,0.000252,2]
[404067239,1769782239189,-1174.0053955,0.00025348,2]
[404067241,1769782239199,-237.0,0.00025358,7]
[404067243,1769782239208,-366.0,0.00025377,2]
[404067244,1769782239218,-600.0,0.00025397,10]
[404067246,1769782239227,-500.0,0.00025448,2]
[404067248,1769782239236,-353.93382909,0.00025448,2]
[404067250,1769782239246,-500.0,0.00025448,2]
[404067252,1769782239255,-286.74373167,0.00025448,2]
[404067253,1769782239263,-500.0,0.00025448,2]
[404067255,1769782239272,-500.0,0.00025448,2]
[404067257,1769782239281,-500.0,0.00025448,2]
[404067259,1769782239291,-421.4930728,0.00025448,2]
[404067261,1769782239300,-318.40056909,0.0002545,2]
[404067263,1769782239310,-302.06858103,0.0002545,2]
[404067264,1769782239319,-500.0,0.0002545,2]
[404067266,1769782239328,-191.08023363,0.0002545,2]
[404067268,1769782239337,-432.40315781,0.0002548,7]
[404067270,1769782239347,-452.98374936,0.0002548,7]
[404067272,1769782239356,-150.65,0.000257,2]
[404067274,1769782239365,-155.27,0.000257,2]
[404067276,1769782239375,-179.0,0.00025788,2]
[404067277,1769782239387,-150.26,0.000258,2]
[404067279,1769782239400,-225.1942388,0.00025872,2]
[404067281,1769782239410,-500.0,0.00026,2]
[404067283,1769782239420,-163.97,0.000261,2]
[404067285,1769782239430,-162.31,0.000261,2]
[404067287,1769782239442,-150.65,0.000262,2]
[404067288,1769782239452,-158.05,0.000265,2]
[404067290,1769782239462,-150.26,0.000266,2]
[404067292,1769782239473,-244.0,0.00026625,7]
[404067293,1769782239481,-1174.00539544,0.00026676,2]
[404067295,1769782239490,-150.65,0.000267,2]
[404067297,1769782239500,-164.67,0.000268,2]
[404067299,1769782239509,-500.0,0.00027,2]
[404067301,1769782239518,-1000.0,0.00027,30]
[404067303,1769782239528,-31539.56702698,0.00027,2]
[404067307,1769782239566,-3000.0,0.00027,2]
[404067310,1769782239578,-3464.06302501,0.00027,2]
[404067312,1769782239589,-4674.67948274,0.00027,2]
[404067314,1769782239600,-1433.53225904,0.00027,2]
[404067316,1769782239610,-581.98504937,0.00027,14]
[404067318,1769782239623,-453.39495063,0.00027,14]
[404067320,1769782239636,-160.96,0.00027,2]
[404067322,1769782239645,-321.73,0.00027,7]
[404067323,1769782239655,-151.0,0.00027,7]
[404067325,1769782239664,-151.0,0.00027,7]
[404067327,1769782239674,-151.0,0.00027,2]
[404067329,1769782239683,-184.166092,0.00027,7]
[404067331,1769782239692,-184.166092,0.00027,7]
[404067333,1769782239701,-21.30955534,0.00027,7]
[404067335,1769782239713,-162.85653666,0.00027,7]
[404067337,1769782239722,-184.166092,0.00027,7]
[404067339,1769782239731,-151.0,0.00027,7]
[404067341,1769782239740,-151.0,0.00027,7]
[404067343,1769782239749,-87.84257077,0.00027,7]
[404067345,1769782239761,-145.73469423,0.00027,7]
[404067346,1769782239770,-151.0,0.00027,7]
[404067348,1769782239779,-106.26530577,0.00027,7]
[404067386,1769782240835,-2e-08,0.00027,7]
[404067387,1769782240850,-109.41129521,0.00027,7]
[404067390,1769782240859,-158.128719,0.00027,7]
[404067393,1769782240869,-1021.484696,0.00027,7]
[404067396,1769782240879,-1021.484696,0.00027,7]
[404067399,1769782240888,-151.0,0.00027,7]
[404067401,1769782240897,-1021.484696,0.00027,7]
[404067403,1769782240905,-1021.484696,0.00027,7]
[404067404,1769782240914,-151.0,0.00027,7]
[404067406,1769782240923,-151.0,0.00027,7]
[404067408,1769782240932,-98.61702952,0.00027,7]
[404069094,1769782262617,151.28,0.00030136,120]
[404069099,1769782300784,522.60399943,0.00027397,120]
[404069103,1769782430675,1000.0,0.0003,120]
[404069104,1769782490554,1500.0,0.0003013,120]
[404069105,1769782570316,1938.0,0.0003013,120]
[404069106,1769782602965,303745.35805713,0.00030137,120]
[404069108,1769782802185,155.62,9e-05,2]
[404069109,1769782802479,155.62,9e-05,2]
[404069110,1769782810936,-155.62,9.1e-05,2]
[404069111,1769782810966,-155.62,9.1e-05,2]
[404069112,1769782810994,-547.0,9.1e-05,2]
[404069113,1769782826211,-155.62,9.2e-05,2]
[404069114,1769782826242,-155.62,9.2e-05,2]
[404069139,1769783088528,3877.59,0.00030137,120]
[404069163,1769783187980,872.5,0.00030136,120]
[404069242,1769783254226,-155.62,9.3e-05,2]
[404069243,1769783254248,-152.9879011,9.3e-05,2]
[404069253,1769783282008,-2.6320989,9.3e-05,2]
[404069254,1769783282034,-150.0,9.35e-05,2]
[404069255,1769783282059,-155.62,9.4e-05,2]
[404069256,1769783282089,-155.62,9.4e-05,2]
[404069257,1769783282116,-155.62,9.5e-05,2]
[404069258,1769783282144,-155.62,9.5e-05,2]
[404069259,1769783282172,-155.62,9.6e-05,2]
[404069260,1769783282198,-155.62,9.6e-05,2]
[404069261,1769783282225,-155.62,9.7e-05,2]
[404069262,1769783282430,-155.62,9.7e-05,2]
[404069263,1769783282453,-155.62,9.8e-05,2]
[404069264,1769783282477,-155.62,9.8e-05,2]
[404069265,1769783282500,-155.62,9.9e-05,2]
[404069266,1769783282524,-177.0,0.0001135,2]
[404069376,1769783438668,-150.0,0.0001435,2]
[404069378,1769783438677,-13589.08882571,0.000154,2]
[404069383,1769783438730,-521.39136,0.000154,2]
[404069573,1769783440837,-7339.11588742,0.000154,2]
[404069581,1769783440907,-34676.24545033,0.000154,2]
[404069583,1769783440918,-2881.50761692,0.000154,2]
[404069683,1769783445650,-989.31614597,0.000154,2]
[404069684,1769783445664,-757.50071439,0.000154,2]
[404069685,1769783445677,-669.25071439,0.000154,2]
[404069686,1769783445688,-960.71644034,0.000154,2]
[404069691,1769783446924,-1502.95,0.000154,2]
[404069786,1769783704182,545.0,0.00030136,120]
[404069810,1769784002243,398.84,9e-05,2]
[404069811,1769784002566,398.84,9e-05,2]
[404069812,1769784002851,176.8679011,9e-05,2]
[404069813,1769784008221,-221.9720989,9e-05,2]
[404069814,1769784008243,-398.84,9e-05,2]
[404069815,1769784008270,-398.84,9.1e-05,2]
[404069816,1769784008294,-398.84,9.1e-05,2]
[404069817,1769784008318,-237.9117782,9.1e-05,2]
[404069818,1769784009069,221.0,0.00030137,120]
[404069819,1769784010631,-160.9282218,9.1e-05,2]
[404069820,1769784010654,-36.55017009,9.1e-05,2]
[404069821,1769784012051,-362.28982991,9.1e-05,2]
[404069822,1769784012074,-137.71017009,9.1e-05,2]
[404069823,1769784014766,-261.12982991,9.1e-05,2]
[404069824,1769784014797,-398.84,9.1e-05,2]
[404069825,1769784016377,-315.2592513,9.2e-05,2]
[404069826,1769784021291,-83.5807487,9.2e-05,2]
[404069827,1769784021314,-197.69354698,9.2e-05,2]
[404069828,1769784026624,-201.14645302,9.2e-05,2]
[404069829,1769784026652,-154.20354698,9.2e-05,2]
[404069830,1769784030232,-244.63645302,9.2e-05,2]
[404069831,1769784030272,-398.84,9.2e-05,2]
[404069832,1769784030309,-398.84,9.2e-05,2]
[404069836,1769784039610,3797.66075646,9.2e-05,2]
[404069855,1769784077697,-4736.23899155,9.207e-05,2]
[404069875,1769784125490,-355.35,9.2e-05,2]
[404069905,1769784196003,208.54,0.00030136,120]
[404069906,1769784196270,208.54,0.00030136,120]
[404069907,1769784196503,208.54,0.00030136,120]
[404069908,1769784196781,208.54,0.00030136,120]
[404069909,1769784197028,208.54,0.00030136,120]
[404069910,1769784197391,208.54,0.00030136,120]
[404069911,1769784197651,208.54,0.00030136,120]
[404069912,1769784197896,208.54,0.00030136,120]
[404069913,1769784198153,208.54,0.00030136,120]
[404069914,1769784198403,208.54,0.00030136,120]
[404069915,1769784198646,208.54,0.00030136,120]
[404069916,1769784198918,208.54,0.00030136,120]
[404069917,1769784199188,208.54,0.00030136,120]
[404069918,1769784199476,208.54,0.00030136,120]
[404069919,1769784199724,208.54,0.00030136,120]
[404069920,1769784199964,208.54,0.00030136,120]
[404069921,1769784200203,208.54,0.00030136,120]
[404069922,1769784200437,208.54,0.00030136,120]
[404069923,1769784200683,208.54,0.00030136,120]